[Event "Slovakian ECo-C Extraliga 2024-25"]
[Site "Slovakia"]
[Date "2024.11.24"]
[Round "2.6"]
[White "Schwarz, Dusan"]
[Black "Toth, Ervin"]
[Result "0-1"]
[Annotator "TA"]
[ECO "E11"]
[WhiteElo "2296"]
[BlackElo "2409"]
[PlyCount "68"]
[EventDate "2024.09.12"]
[EventType "team-tourn"]
[EventCountry "SVK"]
[SourceTitle "playchess.com"]
[Source "ChessBase"]
[SourceQuality "1"]
[TimeControl "5400+30"]

{[%evp 9,68,16,30,34,54,42,62,41,73,22,65,77,76,52,55,54,53,48,66,52,34,47,39,47,83,40,103,51,60,47,125,127,119,16,8,0,0,0,0,0,7,0,0,0,28,36,46,42,38,-412,-458,-442,-420,-736,-719,-844,-824,-827,-796,-816,-805]} 1. d4 {[%emt 0:00:03]} Nf6 {[%emt 0:00:11]} 2. c4 {[%emt 0:00:06]} e6 {[%emt 0:00:33]} 3. Nf3 {[%emt 0:00:25]} Bb4+ {[%emt 0:02:51]} 4. Nbd2 {[%emt 0:00:45]} b6 {[%emt 0:01:54]} 5. a3 {[%emt 0:00:53]} Be7 {[%emt 0:00:33]} 6. e4 {[%emt 0:00:55][%cal Be2e4,Be4e5][%mdl 32]} d5 {[%emt 0:02:21]} 7. e5 {[%emt 0:02:06]} Nfd7 {[%emt 0:00:07]} 8. Bd3 {[%emt 0:07:42]} c5 {[%emt 0:03:00]} 9. O-O {[%emt 0:02:22]} (9. cxd5 $1 $16 exd5 10. O-O) 9... Nc6 {[%emt 0:06:15]} 10. cxd5 {[%emt 0:03:01]} exd5 {[%emt 0:00:09] [#]} 11. Re1 $1 {[%emt 0:00:41]} O-O {[%emt 0:03:52] [#]} 12. b4 $1 {[%emt 0:11:51]} Re8 {[%emt 0:05:46]} 13. Qc2 {[%emt 0:05:33] aiming for e6.} Nf8 {[%emt 0:05:42]} 14. bxc5 {[%emt 0:01:40]} bxc5 {[%emt 0:00:08]} 15. dxc5 {[%emt 0:00:19]} Bg4 {[%emt 0:00:22]} 16. Bb2 {[%emt 0:02:03]} h6 {[%emt 0:13:45]} 17. Rac1 {[%emt 0:02:28]} Bg5 {[%emt 0:10:37]} (17... Rc8 $14) 18. Nxg5 {[%emt 0:09:22]} (18. Bb5 $16 Rc8 19. Nxg5 Qxg5 20. Re3) 18... Qxg5 $14 {[%emt 0:00:07]} 19. g3 {[%emt 0:01:55]} Ne6 {[%emt 0:00:16]} ({Black should play} 19... Qh5 $14) 20. f4 $16 {[%emt 0:03:23]} Qh5 {[%emt 0:01:13] [#]} 21. Qa4 {[%emt 0:02:31]} (21. f5 $1 $16 {[%cal Rf5e6]}) 21... Rec8 $1 $11 {[%emt 0:02:11]} 22. Bf1 {[%emt 0:13:11]} Rab8 {[%emt 0:04:23]} 23. Ba1 {[%emt 0:00:24]} Rc7 {[%emt 0:05:42]} 24. Bg2 {[%emt 0:00:48][%cal Oa4a6]} Ne7 {[%emt 0:00:05][%cal Og4h3]} 25. c6 {[%emt 0:05:55]} Rbc8 {[%emt 0:01:23][%cal Og4h3]} 26. Nb3 {[%emt 0:03:40]} Nxc6 {[%emt 0:10:01]} 27. Bxd5 {[%emt 0:03:39]} Bf3 {[%emt 0:00:05]} 28. Bxf3 {[%emt 0:01:53]} Qxf3 {[%emt 0:00:05]} 29. Qe4 $2 {[%emt 0:01:09][%mdl 8192]} (29. Rc3 $14 {keeps the upper hand.} Qg4 30. Qe4) 29... Qxb3 $19 {[%emt 0:00:20]} 30. Re3 {[%emt 0:02:46]} Qb6 {[%emt 0:00:15]} 31. Kh1 {[%emt 0:02:10]} (31. Rb1 $142 Qc5 32. Bc3) 31... Ne7 {[%emt 0:00:56]} 32. Rd1 {[%emt 0:01:45]} Rc4 {[%emt 0:01:59]} 33. Qf3 {[%emt 0:00:33]} Rc1 {[%emt 0:01:03] White must now prevent ...Rxd1+.} 34. Ree1 {[%emt 0:00:44]} Qb1 {[%emt 0:00:24]} 0-1

[Event "Slovakian ECo-C Extraliga 2024-25"]
[Site "Slovakia"]
[Date "2024.11.24"]
[Round "2.6"]
[White "Briestensky, Rastislav"]
[Black "Pacher, Milan"]
[Result "0-1"]
[Annotator "RC"]
[ECO "D02"]
[WhiteElo "2263"]
[BlackElo "2310"]
[PlyCount "104"]
[EventDate "2024.09.12"]
[EventType "team-tourn"]
[EventCountry "SVK"]
[SourceTitle "playchess.com"]
[Source "ChessBase"]
[SourceQuality "1"]
[TimeControl "5400+30"]

1. d4 {[%emt 0:00:02]} d5 {[%emt 0:00:04]} 2. Nf3 {[%emt 0:00:06]} Nf6 {[%emt 0:00:04]} 3. c4 {[%emt 0:00:08]} e6 {[%emt 0:00:04]} 4. e3 {[%emt 0:00:14]} Bd6 {[%emt 0:01:39]} 5. Nc3 {[%emt 0:00:08]} O-O {[%emt 0:00:16]} 6. Bd3 {[%emt 0:00:10]} b6 {[%emt 0:01:16]} 7. e4 {[%emt 0:00:41]} dxe4 {[%emt 0:00:49]} 8. Nxe4 {[%emt 0:00:08]} Bb4+ {[%emt 0:00:05]} 9. Bd2 {[%emt 0:00:10]} Bxd2+ {[%emt 0:00:06]} 10. Qxd2 {[%emt 0:00:33]} Bb7 {[%emt 0:00:08]} 11. Qe3 {[%emt 0:01:23]} Nbd7 {[%emt 0:02:40]} 12. O-O {[%emt 0:00:56]} c5 {[%emt 0:00:30]} 13. dxc5 {[%emt 0:07:58]} Nxc5 {[%emt 0:00:45]} 14. Nxc5 {[%emt 0:00:11]} bxc5 {[%emt 0:00:03]} 15. Rfd1 {[%emt 0:01:05]} Qb6 {[%emt 0:00:06]} 16. Rd2 {[%emt 0:02:12]} Rad8 {[%emt 0:01:19]} 17. Rad1 {[%emt 0:00:41]} Bxf3 {[%emt 0:02:44]} 18. Qxf3 {[%emt 0:00:07]} Rd4 {[%emt 0:00:05]} 19. Bf1 {[%emt 0:02:15]} e5 {[%emt 0:01:40]} 20. Rxd4 {[%emt 0:00:21]} cxd4 {[%emt 0:00:04]} 21. Qa3 a5 {[%emt 0:07:35]} 22. c5 {[%emt 0:01:19]} Qb4 {[%emt 0:09:15]} 23. Qxb4 {[%emt 0:00:15]} axb4 {[%emt 0:00:05]} 24. f4 {[%emt 0:00:05]} Ne4 {[%emt 0:17:27]} 25. c6 {[%emt 0:06:21]} f6 {[%emt 0:03:44]} 26. fxe5 {[%emt 0:00:47]} fxe5 {[%emt 0:00:05]} 27. Re1 {[%emt 0:00:07]} Nd6 {[%emt 0:02:41]} 28. Rxe5 {[%emt 0:00:16]} Rc8 {[%emt 0:00:13]} 29. Rc5 {[%emt 0:01:35]} Kf8 {[%emt 0:01:16]} 30. Bd3 {[%emt 0:00:05]} h6 {[%emt 0:01:03]} 31. a4 {[%emt 0:01:08]} bxa3 {[%emt 0:00:08]} 32. bxa3 {[%emt 0:00:03]} Ke7 {[%emt 0:01:10]} 33. a4 {[%emt 0:00:26]} Nf7 {[%emt 0:03:36]} 34. Be4 {[%emt 0:04:06]} Ng5 {[%emt 0:02:41]} 35. Bd3 {[%emt 0:11:53]} Kd6 {[%emt 0:00:45]} 36. Rc4 Kd5 {[%emt 0:02:56]} 37. h4 {[%emt 0:02:09]} Ne4 {[%emt 0:04:07]} 38. Rc2 {[%emt 0:09:46]} Nc5 {[%emt 0:02:53]} 39. Bb5 {[%emt 0:00:51]} d3 {[%emt 0:00:55]} 40. Rc1 {[%emt 0:01:19]} g5 {[%emt 0:11:48]} 41. hxg5 {[%emt 0:01:17]} hxg5 {[%emt 0:00:02]} 42. Kf2 {[%emt 0:01:21]} Rf8+ {[%emt 0:00:35]} 43. Ke3 {[%emt 0:03:19]} Re8+ {[%emt 0:00:09]} 44. Kf3 {[%emt 0:00:25]} Rf8+ {[%emt 0:04:47]} 45. Ke3 {[%emt 0:15:47]} Re8+ {[%emt 0:00:33]} 46. Kf2 {[%emt 0:05:14]} d2 {[%emt 0:07:36]} 47. Rd1 {[%emt 0:01:56]} Ne4+ {[%emt 0:00:05]} 48. Kf3 {[%emt 0:00:55]} Kd4 {[%emt 0:01:47]} 49. g3 {[%emt 0:08:21]} Rf8+ {[%emt 0:02:26]} 50. Kg2 {[%emt 0:00:06]} Ke3 {[%emt 0:00:05]} 51. c7 {[%emt 0:09:18]} Rc8 {[%emt 0:00:45]} 52. Rf1 {[%emt 0:01:29]} Nf2 {[%emt 0:02:10]} 0-1

[Event "Slovakian ECo-C Extraliga 2024-25"]
[Site "Slovakia"]
[Date "2024.11.24"]
[Round "2.6"]
[White "Vojtek, Vladimir"]
[Black "Kantorik, Marian"]
[Result "*"]
[Annotator "RC"]
[ECO "D32"]
[WhiteElo "2245"]
[BlackElo "2165"]
[PlyCount "21"]
[EventDate "2024.09.12"]
[EventType "team-tourn"]
[EventCountry "SVK"]
[SourceTitle "playchess.com"]
[Source "ChessBase"]
[SourceQuality "1"]
[TimeControl "5400+30"]

1. d4 {[%emt 0:00:01]} d5 {[%emt 0:00:22]} 2. c4 {[%emt 0:00:08]} e6 {[%emt 0:00:27]} 3. Nc3 {[%emt 0:00:12]} c5 {[%emt 0:00:37]} 4. cxd5 {[%emt 0:00:22]} exd5 {[%emt 0:00:04]} 5. Nf3 {[%emt 0:00:20]} Nf6 {[%emt 0:00:05]} 6. Bg5 {[%emt 0:01:14]} Be6 {[%emt 0:00:19]} 7. g3 {[%emt 0:03:04]} Nc6 {[%emt 0:03:56]} 8. Bg2 {[%emt 0:00:39]} h6 {[%emt 0:12:25]} 9. Bxf6 {[%emt 0:01:02]} Qxf6 {[%emt 0:01:37]} 10. O-O {[%emt 0:00:56]} cxd4 {[%emt 0:07:50]} 11. Nb5 *

[Event "Slovakian ECo-C Extraliga 2024-25"]
[Site "Slovakia"]
[Date "2024.11.24"]
[Round "2.6"]
[White "Lisko, Frantisek"]
[Black "Rucek, Kristian"]
[Result "0-1"]
[Annotator "RC"]
[ECO "D32"]
[WhiteElo "2160"]
[BlackElo "2172"]
[PlyCount "74"]
[EventDate "2024.09.12"]
[EventType "team-tourn"]
[EventCountry "SVK"]
[SourceTitle "playchess.com"]
[Source "ChessBase"]
[SourceQuality "1"]
[TimeControl "5400+30"]

1. d4 {[%emt 0:00:01]} d5 {[%emt 0:00:22]} 2. c4 {[%emt 0:00:08]} e6 {[%emt 0:00:27]} 3. Nc3 {[%emt 0:00:12]} c5 {[%emt 0:00:37]} 4. cxd5 {[%emt 0:00:22]} exd5 {[%emt 0:00:04]} 5. Nf3 {[%emt 0:00:20]} Nf6 {[%emt 0:00:05]} 6. Bg5 {[%emt 0:01:14]} Be6 {[%emt 0:00:19]} 7. g3 {[%emt 0:03:04]} Nc6 {[%emt 0:03:56]} 8. Bg2 {[%emt 0:00:39]} h6 {[%emt 0:12:25]} 9. Bxf6 {[%emt 0:01:02]} Qxf6 {[%emt 0:01:37]} 10. O-O {[%emt 0:00:56]} cxd4 {[%emt 0:07:50]} 11. Nb5 {[%emt 0:00:38]} Rc8 {[%emt 0:00:07]} 12. Nbxd4 {[%emt 0:05:09]} Bc5 {[%emt 0:00:18]} 13. Nxc6 {[%emt 0:07:02]} Rxc6 {[%emt 0:01:07]} 14. b4 {[%emt 0:07:42]} Bxb4 {[%emt 0:20:54]} 15. Rb1 {[%emt 0:03:22]} Bc5 {[%emt 0:02:50]} 16. Rxb7 {[%emt 0:00:48]} O-O {[%emt 0:00:05]} 17. Qa4 {[%emt 0:02:15]} Rfc8 {[%emt 0:01:33]} 18. Nd2 {[%emt 0:17:37]} Bb6 {[%emt 0:03:34]} 19. Rb8 {[%emt 0:21:08]} Rxb8 {[%emt 0:00:35]} 20. Qxc6 {[%emt 0:00:02]} Rc8 {[%emt 0:00:09]} 21. Qb5 {[%emt 0:05:18]} Rc2 {[%emt 0:06:43]} 22. Nb3 {[%emt 0:07:55]} Rxa2 {[%emt 0:03:24]} 23. Nc1 {[%emt 0:02:51]} Ra1 {[%emt 0:07:38]} 24. e3 {[%emt 0:04:52]} d4 {[%emt 0:04:29]} 25. e4 {[%emt 0:03:40]} Qg5 {[%emt 0:08:23]} 26. Qb2 {[%emt 0:01:42]} Qa5 {[%emt 0:00:08]} 27. Nd3 {[%emt 0:02:03]} Ra2 {[%emt 0:01:54]} 28. Qb1 {[%emt 0:00:32]} Bc4 {[%emt 0:04:06]} 29. Rc1 {[%emt 0:00:26]} Bxd3 {[%emt 0:03:04]} 30. Rc8+ {[%emt 0:00:08]} Kh7 {[%emt 0:00:13]} 31. Qxd3 {[%emt 0:00:04]} Qe1+ {[%emt 0:00:28]} 32. Qf1 {[%emt 0:00:22]} Ra1 {[%emt 0:01:47]} 33. Rc2 {[%emt 0:00:58]} d3 {[%emt 0:00:57]} 34. Rd2 {[%emt 0:00:57]} Qxd2 {[%emt 0:01:05]} 35. Qxa1 {[%emt 0:00:05]} Qxf2+ {[%emt 0:00:11]} 36. Kh1 {[%emt 0:00:10]} d2 {[%emt 0:00:12]} 37. Qd1 {[%emt 0:00:00]} Qe1+ {[%emt 0:00:00]} 0-1

[Event "Slovakian ECo-C Extraliga 2024-25"]
[Site "Slovakia"]
[Date "2024.11.24"]
[Round "2.6"]
[White "Skreko, Igor"]
[Black "Jurcik, Martin"]
[Result "1/2-1/2"]
[Annotator "RC"]
[ECO "B01"]
[WhiteElo "2157"]
[BlackElo "2361"]
[PlyCount "75"]
[EventDate "2024.09.12"]
[EventType "team-tourn"]
[EventCountry "SVK"]
[SourceTitle "playchess.com"]
[Source "ChessBase"]
[SourceQuality "1"]
[TimeControl "5400+30"]

1. e4 {[%emt 0:04:04]} d5 {[%emt 0:03:56]} 2. exd5 {[%emt 0:00:00]} Nf6 {[%emt 0:00:06]} 3. d4 {[%emt 0:00:00]} Nxd5 {[%emt 0:00:25]} 4. Nf3 {[%emt 0:00:00]} Bg4 {[%emt 0:01:37]} 5. Be2 {[%emt 0:00:30]} e6 {[%emt 0:01:52]} 6. h3 {[%emt 0:01:23]} Bh5 {[%emt 0:02:41]} 7. O-O {[%emt 0:01:21]} Be7 {[%emt 0:00:58]} 8. c4 {[%emt 0:13:59]} Nb6 {[%emt 0:11:49]} 9. Be3 {[%emt 0:00:45]} O-O {[%emt 0:07:19]} 10. Nbd2 {[%emt 0:06:47]} N8d7 {[%emt 0:07:02]} 11. Rc1 {[%emt 0:03:00]} c5 {[%emt 0:05:46]} 12. Nb3 {[%emt 0:00:55]} Qc7 {[%emt 0:08:22]} 13. d5 {[%emt 0:03:00]} e5 {[%emt 0:01:57]} 14. Nfd2 {[%emt 0:04:30]} Bg6 {[%emt 0:02:47]} 15. Nb1 {[%emt 0:04:36]} Na4 {[%emt 0:19:08]} 16. Qd2 {[%emt 0:02:13]} Bd6 {[%emt 0:00:01]} 17. Nc3 {[%emt 0:02:03]} Nxc3 {[%emt 0:00:08]} 18. Rxc3 {[%emt 0:01:07]} Rae8 {[%emt 0:00:58]} 19. Nc1 {[%emt 0:05:27]} e4 {[%emt 0:00:48]} 20. f4 {[%emt 0:01:44]} exf3 {[%emt 0:00:22]} 21. Bxf3 {[%emt 0:00:32]} Nf6 {[%emt 0:04:45]} 22. Ne2 {[%emt 0:08:32]} Ne4 {[%emt 0:00:49]} 23. Bxe4 {[%emt 0:00:04]} Rxe4 {[%emt 0:00:03]} 24. Bf4 {[%emt 0:01:30]} Rfe8 {[%emt 0:08:59]} 25. Bxd6 {[%emt 0:00:44]} Qxd6 {[%emt 0:00:05]} 26. Ng3 {[%emt 0:00:43]} R4e7 {[%emt 0:08:35]} 27. Rcf3 {[%emt 0:02:27]} b6 {[%emt 0:00:39]} 28. h4 {[%emt 0:12:40]} h6 {[%emt 0:00:20]} 29. h5 {[%emt 0:00:47]} Bh7 {[%emt 0:00:07]} 30. a3 {[%emt 0:02:20]} f6 {[%emt 0:00:37]} 31. b4 {[%emt 0:02:31]} Re5 {[%emt 0:01:13]} 32. Qc3 {[%emt 0:01:23]} R8e7 {[%emt 0:01:03]} 33. b5 {[%emt 0:01:54]} Kf7 {[%emt 0:01:06]} 34. a4 {[%emt 0:00:27]} Rg5 {[%emt 0:00:27]} 35. Re1 {[%emt 0:02:01]} Rge5 {[%emt 0:00:38]} 36. Ref1 {[%emt 0:01:35]} Rg5 {[%emt 0:00:09]} 37. Re1 {[%emt 0:01:12]} Rge5 {[%emt 0:00:04]} 38. Ref1 {[%emt 0:00:52]} 1/2-1/2

[Event "Slovakian ECo-C Extraliga 2024-25"]
[Site "Slovakia"]
[Date "2024.11.24"]
[Round "2.6"]
[White "Bochnickova, Andrea"]
[Black "Borhy, Marcell"]
[Result "1-0"]
[Annotator "TA"]
[ECO "B53"]
[WhiteElo "2004"]
[BlackElo "2356"]
[PlyCount "121"]
[EventDate "2024.09.12"]
[EventType "team-tourn"]
[EventCountry "SVK"]
[SourceTitle "playchess.com"]
[Source "ChessBase"]
[SourceQuality "1"]
[TimeControl "5400+30"]

{[%evp 25,121,0,25,10,8,16,31,34,47,5,17,-15,0,-4,4,0,0,-10,0,-18,-6,-8,-22,-33,-35,-20,-30,-87,-71,-93,-13,-24,-20,-72,-69,-82,-12,-8,0,-15,-16,-32,-4,-29,-18,-55,-7,-41,-41,-106,-112,-117,-116,-121,-129,-126,-113,-116,-130,-120,-122,-219,-170,-218,-203,-243,-233,-192,-216,-202,-129,-142,-153,-360,-360,-335,0,0,0,0,0,0,0,0,0,0,0,0,29978,29979,29979,29979,29980,29981,29981,29982,29982,29982]} 1. e4 {[%emt 0:00:04]} c5 {[%emt 0:00:07]} 2. Nf3 {[%emt 0:00:04]} d6 {[%emt 0:00:07]} 3. d4 {[%emt 0:00:09]} cxd4 {[%emt 0:00:08]} 4. Qxd4 {[%emt 0:00:21]} Nc6 {[%emt 0:00:10]} 5. Bb5 {[%emt 0:00:09]} Bd7 {[%emt 0:00:29]} 6. Bxc6 {[%emt 0:00:08]} Bxc6 {[%emt 0:00:05]} 7. c4 {[%emt 0:00:39]} Nf6 {[%emt 0:01:26]} 8. Nc3 {[%emt 0:00:11]} g6 {[%emt 0:00:07]} 9. O-O {[%emt 0:00:24]} Bg7 {[%emt 0:00:07]} 10. Qd3 {[%emt 0:01:00]} O-O {[%emt 0:00:14]} 11. Nd4 {[%emt 0:00:31]} Rc8 {[%emt 0:02:05] 11...Rc8 is better than 11...Qb6.} 12. b3 {[%emt 0:03:01] B53: Sicilian: 2...d6: Lines with Qxd4.} a6 {[%emt 0:07:38]} 13. a4 {[%emt 0:07:46]} Nd7 $146 {[%emt 0:07:16]} ({Predecessor:} 13... Qa5 14. Bd2 Qc7 15. Rac1 Nd7 16. b4 Ne5 17. Qe2 Rfd8 18. Nb3 Be8 19. a5 {½-½ Hasangatin,R (2465)-Grebnev,A (2447) Novorossiysk Small Land Blitz 2022 (12)}) 14. Rb1 {[%emt 0:08:59]} Nc5 {[%emt 0:14:33]} 15. Qe3 {[%emt 0:06:34]} Ne6 {[%emt 0:04:34]} 16. Nxe6 {[%emt 0:03:57]} fxe6 {[%emt 0:00:05]} 17. Bb2 {[%emt 0:00:44]} Qa5 {[%emt 0:03:21]} 18. Qh3 {[%emt 0:26:12]} Bd7 {[%emt 0:00:23]} 19. Nd5 {[%emt 0:11:01]} Rf7 {[%emt 0:07:19]} 20. Bxg7 {[%emt 0:01:35]} (20. Bc3 {simplifies} Bxc3 21. Qxc3 Qxc3 22. Nxc3 b5 23. axb5 axb5 24. Nxb5 Bxb5 25. cxb5 Rb8 26. Rfc1) 20... Kxg7 {[%emt 0:00:19]} 21. b4 {[%emt 0:09:54]} Qd8 $1 {[%emt 0:01:23]} 22. Qc3+ {[%emt 0:00:05]} Kg8 {[%emt 0:00:19]} 23. Ne3 {[%emt 0:00:15]} Bxa4 {[%emt 0:04:47]} 24. Ng4 {[%emt 0:06:47]} Qf8 {[%emt 0:00:09]} 25. Qe3 {[%emt 0:02:55]} Kh8 {[%emt 0:04:06]} 26. Nh6 {[%emt 0:03:02]} (26. Qa3 $11 Bd7 27. Ne3) 26... Rf4 $17 {[%emt 0:03:50]} 27. f3 {[%emt 0:02:08]} Rxc4 {[%emt 0:16:17]} ({Black should play} 27... Rh4 $17 28. Ng4 (28. Qc3+ $2 Qg7 $19) 28... Rxc4) 28. g3 $11 {[%emt 0:00:10]} Rf6 {[%emt 0:00:41]} 29. e5 {[%emt 0:00:55]} (29. Ng4 $11 {keeps the balance.}) 29... dxe5 $17 {[%emt 0:00:39]} 30. Ng4 $1 {[%emt 0:00:44] [#]} Qb8 {[%emt 0:12:13]} (30... Qd8 $1 $17 31. Rfc1 Rxg4 32. fxg4 Qd4 33. Qxd4 exd4) 31. Nxe5 $11 {[%emt 0:02:37]} Rc8 {[%emt 0:00:31]} 32. Ng4 {[%emt 0:00:33]} Rf5 {[%emt 0:01:47]} 33. Qxe6 {[%emt 0:00:55]} Rcf8 {[%emt 0:03:00]} 34. f4 {[%emt 0:01:22]} (34. Qxe7 $2 Re8 35. Qh4 Qa7+ 36. Kg2 Bc6 $19) (34. Qa2 {with more complications.} h5 35. Qxa4 hxg4 36. Qa1+) 34... Qd6 {[%emt 0:04:11]} 35. Rfe1 {[%emt 0:00:33]} Bc6 {[%emt 0:00:48]} (35... g5 $15 {is more appropriate.} 36. Qxd6 exd6) 36. Qxd6 {[%emt 0:00:36]} exd6 {[%emt 0:00:05]} 37. Rbd1 {[%emt 0:00:47]} ({White should try} 37. Ne3 $15 Rb5 38. Nc4) 37... Bf3 $1 $17 {[%emt 0:00:54]} 38. Ne3 {[%emt 0:00:28]} Bxd1 {[%emt 0:01:44]} 39. Nxf5 {[%emt 0:00:05]} Rxf5 {[%emt 0:00:07]} 40. Rxd1 {[%emt 0:00:04]} Rb5 {[%emt 0:00:06]} 41. Rd4 {[%emt 0:00:28]} Kg7 {[%emt 0:00:00]} 42. Kf2 {[%emt 0:00:00]} Kf7 {[%emt 0:00:00]} 43. Rxd6 {[%emt 0:00:00]} (43. g4 $17) 43... Rxb4 $19 {[%emt 0:00:00]} 44. Rd7+ {[%emt 0:00:00] [#]} Kf6 $1 {[%emt 0:00:00]} 45. Rxh7 {[%emt 0:00:00]} a5 {[%emt 0:00:00]} 46. Rh8 {[%emt 0:00:00] [#]} a4 $1 {[%emt 0:00:00]} 47. Ra8 {[%emt 0:00:00]} b5 {[%emt 0:00:00]} 48. Kf3 {[%emt 0:00:00]} Rb3+ {[%emt 0:00:00]} 49. Kg4 $2 {[%emt 0:00:00]} (49. Ke4 $17) 49... a3 $19 {[%emt 0:00:00]} 50. Ra6+ {[%emt 0:00:00]} Kf7 $2 {[%emt 0:00:00]} ({Better is} 50... Ke7 $19 51. Kg5 b4 52. Kxg6 Rb2) 51. Kg5 $11 {[%emt 0:00:00]} b4 {[%emt 0:00:12]} 52. Ra7+ {[%emt 0:00:00]} Ke8 {[%emt 0:05:03]} 53. Kxg6 {[%emt 0:00:00]} Rb2 {[%emt 0:00:58]} 54. f5 $1 {[%emt 0:00:00]} Rxh2 {[%emt 0:01:26]} (54... a2 $5 55. f6 $8 Rf2 56. f7+ Kf8 57. Ra8+ Ke7 58. Ra7+ Kf8 59. Ra8+ Ke7 60. Ra7+ Kf8 $11) 55. f6 {[%emt 0:00:00]} Rf2 {[%emt 0:00:04]} 56. Kg7 {[%emt 0:00:00]} a2 $2 {[%emt 0:00:19][%mdl 8192]} (56... Rf5 $11 57. Re7+ (57. f7+ $2 Rxf7+ 58. Rxf7 b3 $19) 57... Kd8) 57. Rxa2 $1 {[%emt 0:00:00]} Rxa2 {[%emt 0:00:50]} 58. f7+ {[%emt 0:00:00]} Kd7 {[%emt 0:00:05]} 59. f8=Q {[%emt 0:00:00]} (59. f8=B {leads to mate.} b3 60. Kh6 b2 61. Bg7 b1=Q (61... b1=R {is a self mate.} 62. Kg5 Ra4 63. Kf6 Rb5 64. Bh6 Ra6+ 65. Kg7 Re5 66. Kh7 Rh5 67. Kg8 Rhxh6 68. g4 Ke7 69. Kg7 Rag6#) 62. Kg5 Qe4 63. Bf6 Ra5+) 59... Ra4 {[%emt 0:01:05]} 60. Qb8 {[%emt 0:00:00]} Ra3 {[%emt 0:01:05]} 61. g4 {[%emt 0:00:00]} 1-0

[Event "Slovakian ECo-C Extraliga 2024-25"]
[Site "Slovakia"]
[Date "2024.11.24"]
[Round "2.7"]
[White "Farkas, Gabor"]
[Black "Krak, Tomas"]
[Result "1/2-1/2"]
[Annotator "RC"]
[ECO "A58"]
[WhiteElo "2314"]
[BlackElo "2229"]
[PlyCount "45"]
[EventDate "2024.09.12"]
[EventType "team-tourn"]
[EventCountry "SVK"]
[SourceTitle "playchess.com"]
[Source "ChessBase"]
[SourceQuality "1"]
[TimeControl "5400+30"]

1. d4 {[%emt 0:00:03]} Nf6 {[%emt 0:00:25]} 2. c4 {[%emt 0:00:07]} c5 {[%emt 0:02:31]} 3. d5 {[%emt 0:00:06]} b5 {[%emt 0:02:24]} 4. cxb5 {[%emt 0:00:17]} a6 {[%emt 0:00:06]} 5. bxa6 {[%emt 0:00:04]} g6 {[%emt 0:00:07]} 6. Nc3 {[%emt 0:00:04]} Bg7 {[%emt 0:01:01]} 7. e4 {[%emt 0:00:09]} O-O {[%emt 0:00:07]} 8. Nf3 {[%emt 0:03:24]} Qa5 {[%emt 0:00:48]} 9. Bd2 {[%emt 0:02:36]} Bxa6 {[%emt 0:01:18]} 10. Bxa6 {[%emt 0:05:13]} Qxa6 {[%emt 0:00:16]} 11. Qe2 {[%emt 0:01:08]} e6 {[%emt 0:00:52]} 12. Qxa6 {[%emt 0:01:53]} Nxa6 {[%emt 0:00:20]} 13. O-O {[%emt 0:01:13]} exd5 {[%emt 0:07:17]} 14. exd5 {[%emt 0:00:17]} Nb4 {[%emt 0:01:26]} 15. Be3 {[%emt 0:05:12]} Rfc8 {[%emt 0:05:34]} 16. Rfd1 {[%emt 0:03:28]} Nc2 {[%emt 0:05:29]} 17. Rab1 {[%emt 0:00:27]} Nxe3 {[%emt 0:00:56]} 18. fxe3 {[%emt 0:00:06]} Ng4 {[%emt 0:00:52]} 19. e4 {[%emt 0:06:27]} Re8 {[%emt 0:12:52]} 20. Re1 {[%emt 0:04:12]} Ne5 {[%emt 0:09:02]} 21. Re2 {[%emt 0:32:45]} Nd3 {[%emt 0:04:09]} 22. g3 {[%emt 0:14:52]} Ra5 {[%emt 0:13:32]} 23. Ne1 {[%emt 0:07:18]} 1/2-1/2

[Event "Slovakian ECo-C Extraliga 2024-25"]
[Site "Slovakia"]
[Date "2024.11.24"]
[Round "2.7"]
[White "Stevik, Patrik"]
[Black "Petran, Peter"]
[Result "1-0"]
[Annotator "RC"]
[ECO "D18"]
[WhiteElo "2298"]
[BlackElo "2150"]
[PlyCount "67"]
[EventDate "2024.09.12"]
[EventType "team-tourn"]
[EventCountry "SVK"]
[SourceTitle "playchess.com"]
[Source "ChessBase"]
[SourceQuality "1"]
[TimeControl "5400+30"]

1. d4 {[%emt 0:00:05]} Nf6 {[%emt 0:00:47]} 2. c4 {[%emt 0:00:35]} c6 {[%emt 0:00:32]} 3. Nc3 {[%emt 0:00:53]} d5 {[%emt 0:00:07]} 4. Nf3 {[%emt 0:02:05]} dxc4 {[%emt 0:00:41]} 5. a4 {[%emt 0:00:44]} Bf5 {[%emt 0:01:14]} 6. e3 {[%emt 0:02:38]} e6 {[%emt 0:00:21]} 7. Bxc4 {[%emt 0:01:16]} h6 {[%emt 0:02:16]} 8. h3 {[%emt 0:02:34]} Nbd7 {[%emt 0:00:23]} 9. O-O {[%emt 0:00:36]} Be7 {[%emt 0:00:14]} 10. Qe2 {[%emt 0:01:40]} Ne4 {[%emt 0:01:06]} 11. Nxe4 {[%emt 0:07:27]} Bxe4 {[%emt 0:00:08]} 12. Bd2 {[%emt 0:00:17]} O-O {[%emt 0:00:25]} 13. b4 {[%emt 0:03:28]} Bd6 {[%emt 0:00:31]} 14. Bc3 {[%emt 0:02:02]} Qe7 {[%emt 0:00:59]} 15. Nd2 {[%emt 0:04:03]} Bg6 {[%emt 0:00:35]} 16. Bd3 {[%emt 0:02:11]} Bxd3 {[%emt 0:05:16]} 17. Qxd3 {[%emt 0:00:02]} f5 {[%emt 0:03:13]} 18. b5 {[%emt 0:13:06]} Rac8 {[%emt 0:04:10]} 19. Nc4 {[%emt 0:03:50]} Bb8 {[%emt 0:02:39]} 20. Rab1 {[%emt 0:02:35]} c5 {[%emt 0:04:12]} 21. d5 {[%emt 0:03:00]} e5 {[%emt 0:01:17]} 22. d6 {[%emt 0:02:44]} Qe6 {[%emt 0:00:28]} 23. Rfd1 {[%emt 0:02:00]} e4 {[%emt 0:17:41]} 24. Qd5 {[%emt 0:02:29]} Qxd5 {[%emt 0:01:52]} 25. Rxd5 {[%emt 0:00:06]} g6 {[%emt 0:08:16]} 26. b6 {[%emt 0:03:37]} axb6 {[%emt 0:08:02]} 27. Nxb6 {[%emt 0:01:48]} Rcd8 {[%emt 0:00:18]} 28. Nc4 {[%emt 0:02:44]} Nf6 {[%emt 0:07:28]} 29. Bxf6 {[%emt 0:03:46]} Rxf6 {[%emt 0:00:36]} 30. Rxb7 {[%emt 0:00:17]} Bxd6 {[%emt 0:00:55]} 31. Rb6 {[%emt 0:00:45]} Bc7 {[%emt 0:09:31]} 32. Rxd8+ {[%emt 0:00:23]} Bxd8 {[%emt 0:00:05]} 33. Rxf6 {[%emt 0:00:13]} Bxf6 {[%emt 0:00:07]} 34. a5 {[%emt 0:00:03]} 1-0